fUST/lending_fUST_20251113
["ID","MTS","AMOUNT","RATE_DAILY","PERIOD"]
[393828107,1763021446949,-856.8,0.00044109,120]
[393828108,1763021446959,-662.52,0.00044109,120]
[393828109,1763021446968,-508.34153228,0.00044109,120]
[393828110,1763021446977,-500.0,0.00044109,120]
[393828111,1763021446986,-994.1,0.00044109,120]
[393828112,1763021446996,-518.85464674,0.00044109,120]
[393828113,1763021447005,-500.0,0.00044109,120]
[393828114,1763021447014,-500.0,0.00044109,120]
[393828115,1763021447024,-500.0,0.00044109,120]
[393828116,1763021447033,-507.15616847,0.00044109,120]
[393828117,1763021447042,-500.0,0.00044109,120]
[393828118,1763021447051,-552.11,0.00044109,120]
[393828119,1763021447060,-500.0,0.00044109,120]
[393828120,1763021447070,-726.44,0.00044109,120]
[393828121,1763021447079,-759.6,0.00044109,120]
[393828122,1763021447088,-500.0,0.00044109,120]
[393828123,1763021447099,-500.0,0.00044109,120]
[393828124,1763021447108,-3381.49,0.00044109,2]
[393828125,1763021447117,-500.0,0.00044109,120]
[393828126,1763021447127,-500.0,0.00044109,120]
[393828127,1763021447138,-500.0,0.00044109,120]
[393828128,1763021447147,-441.93557202,0.00044109,120]
[393828129,1763021447157,-522.36,0.00044109,120]
[393828130,1763021447166,-871.19,0.00044109,120]
[393828131,1763021447175,-500.0,0.00044109,120]
[393828132,1763021447185,-500.0,0.00044109,120]
[393828133,1763021447194,-964.85,0.00044109,120]
[393828134,1763021447203,-500.0,0.00044109,120]
[393828135,1763021447214,-500.0,0.00044109,120]
[393828136,1763021447223,-500.0,0.00044109,120]
[393828137,1763021447233,-2094.98,0.00044109,120]
[393828138,1763021447246,-500.0,0.00044109,120]
[393828139,1763021447255,-548.19,0.00044109,120]
[393828140,1763021447264,-500.0,0.00044109,120]
[393828141,1763021447273,-500.0,0.00044109,120]
[393828142,1763021447441,-715.4,0.00044109,120]
[393828143,1763021447453,-500.0,0.00044109,120]
[393828144,1763021447463,-366.8727091,0.00044109,120]
[393828145,1763021447472,-500.0,0.00044109,120]
[393828146,1763021447482,-500.0,0.00044109,120]
[393828147,1763021447491,-1000.0,0.00044109,2]
[393828148,1763021447500,-778.27,0.00044109,2]
[393828149,1763021447511,-1102.15,0.00044109,120]
[393828150,1763021447520,-500.0,0.00044109,120]
[393828151,1763021447530,-500.0,0.00044109,120]
[393828152,1763021447539,-500.0,0.00044109,120]
[393828153,1763021447549,-500.0,0.00044109,120]
[393828154,1763021447558,-500.0,0.00044109,120]
[393828155,1763021447567,-500.0,0.00044109,120]
[393828156,1763021447577,-500.0,0.00044109,120]
[393828157,1763021447587,-631.98,0.00044109,120]
[393828158,1763021447597,-500.0,0.00044109,120]
[393828159,1763021447607,-500.0,0.00044109,120]
[393828160,1763021447617,-1519.61,0.00044109,120]
[393828161,1763021447626,-775.15,0.00044109,120]
[393828162,1763021447635,-500.0,0.00044109,120]
[393828163,1763021447646,-500.0,0.00044109,120]
[393828164,1763021447655,-500.0,0.00044109,120]
[393828165,1763021447665,-500.0,0.00044109,120]
[393828166,1763021447675,-500.0,0.00044109,120]
[393828167,1763021447684,-500.0,0.00044109,120]
[393828168,1763021447694,-500.0,0.00044109,120]
[393828169,1763021447704,-429.63212407,0.00044109,120]
[393828170,1763021447713,-500.0,0.00044109,120]
[393828171,1763021447723,-679.79,0.00044109,2]
[393828172,1763021447733,-500.0,0.00044109,120]
[393828173,1763021447743,-500.0,0.00044109,120]
[393828174,1763021447753,-500.0,0.00044109,120]
[393828175,1763021447762,-500.0,0.00044109,120]
[393828176,1763021447772,-271.52611387,0.00044109,120]
[393828177,1763021447782,-500.0,0.00044109,120]
[393828178,1763021447792,-500.0,0.00044109,120]
[393828179,1763021447801,-500.0,0.00044109,120]
[393828180,1763021447811,-500.0,0.00044109,120]
[393828181,1763021447820,-1129.15,0.00044109,120]
[393828182,1763021447829,-500.0,0.00044109,120]
[393828183,1763021447839,-500.0,0.00044109,120]
[393828184,1763021447848,-500.0,0.00044109,120]
[393828185,1763021447858,-500.0,0.00044109,120]
[393828186,1763021447867,-574.20836806,0.00044109,120]
[393828187,1763021447876,-989.9,0.00044109,120]
[393828188,1763021447886,-870.89,0.00044109,120]
[393828189,1763021447896,-500.0,0.00044109,120]
[393828190,1763021447906,-500.0,0.00044109,120]
[393828191,1763021447915,-500.0,0.00044109,120]
[393828192,1763021447926,-500.0,0.00044109,120]
[393828193,1763021447936,-500.0,0.00044109,120]
[393828194,1763021447946,-500.0,0.00044109,120]
[393828195,1763021447956,-1004.12,0.00044109,120]
[393828196,1763021447965,-500.0,0.00044109,120]
[393828197,1763021447975,-500.0,0.00044109,120]
[393828198,1763021447985,-500.0,0.00044109,120]
[393828199,1763021447994,-500.0,0.00044109,120]
[393828200,1763021448004,-500.0,0.00044109,120]
[393828201,1763021448014,-500.0,0.00044109,120]
[393828202,1763021448024,-500.0,0.00044109,120]
[393828203,1763021448034,-500.0,0.00044109,120]
[393828204,1763021448043,-500.0,0.00044109,120]
[393828205,1763021448053,-500.0,0.00044109,120]
[393828206,1763021448063,-500.0,0.00044109,120]
[393828207,1763021448072,-500.0,0.00044109,120]
[393828208,1763021448083,-500.0,0.00044109,120]
[393828209,1763021448093,-500.0,0.00044109,120]
[393828210,1763021448103,-909.87,0.00044109,120]
[393828211,1763021448112,-500.0,0.00044109,120]
[393828212,1763021448121,-1373.18,0.00044109,120]
[393828213,1763021448131,-1215.75,0.00044109,120]
[393828214,1763021448141,-381.22198863,0.00044109,120]
[393828215,1763021448151,-500.0,0.00044109,120]
[393828216,1763021448160,-500.0,0.00044109,120]
[393828217,1763021448170,-500.0,0.00044109,120]
[393828218,1763021448179,-500.0,0.00044109,120]
[393828219,1763021448189,-500.0,0.00044109,120]
[393828220,1763021448199,-500.0,0.00044109,120]
[393828221,1763021448210,-500.0,0.00044109,120]
[393828222,1763021448221,-377.9329624,0.00044109,120]
[393828223,1763021448231,-500.0,0.00044109,120]
[393828224,1763021448244,-779.2,0.00044109,120]
[393828225,1763021448254,-1223.82,0.00044109,120]
[393828226,1763021448264,-500.0,0.00044109,120]
[393828227,1763021448275,-500.0,0.00044109,120]
[393828228,1763021448285,-500.0,0.00044109,120]
[393828229,1763021448294,-500.0,0.00044109,120]
[393828230,1763021448304,-500.0,0.00044109,120]
[393828231,1763021448316,-500.0,0.00044109,120]
[393828232,1763021448325,-150.18642228,0.00044109,120]
[393828233,1763021448335,-269.92107441,0.00044109,120]
[393828234,1763021448344,-500.0,0.00044109,120]
[393828235,1763021448354,-500.0,0.00044109,120]
[393828236,1763021448364,-500.0,0.00044109,120]
[393828237,1763021448373,-954.85,0.00044109,120]
[393828238,1763021448383,-500.0,0.00044109,120]
[393828239,1763021448392,-1300.61,0.00044109,120]
[393828240,1763021448401,-500.0,0.00044109,120]
[393828241,1763021448411,-500.0,0.00044109,120]
[393828242,1763021448425,-500.0,0.00044109,120]
[393828243,1763021448436,-500.0,0.00044109,120]
[393828244,1763021448446,-500.0,0.00044109,120]
[393828245,1763021448456,-500.0,0.00044109,120]
[393828246,1763021448466,-500.0,0.00044109,120]
[393828247,1763021448476,-584.64,0.00044109,120]
[393828248,1763021448486,-692.6,0.00044109,120]
[393828249,1763021448496,-500.0,0.00044109,120]
[393828250,1763021448506,-504.95805781,0.00044109,120]
[393828251,1763021448516,-500.0,0.00044109,120]
[393828252,1763021448526,-500.0,0.00044109,120]
[393828253,1763021448536,-773.14,0.00044109,120]
[393828254,1763021448546,-500.0,0.00044109,120]
[393828255,1763021448556,-1151.17,0.00044109,120]
[393828256,1763021448566,-500.0,0.00044109,120]
[393828257,1763021448575,-815.97,0.00044109,120]
[393828258,1763021448586,-500.0,0.00044109,120]
[393828259,1763021448596,-500.0,0.00044109,120]
[393828260,1763021448606,-500.0,0.00044109,120]
[393828261,1763021448616,-502.75205357,0.00044109,120]
[393828262,1763021448627,-500.0,0.00044109,120]
[393828263,1763021448637,-500.0,0.00044109,120]
[393828264,1763021448647,-820.77,0.00044109,120]
[393828265,1763021448657,-500.0,0.00044109,120]
[393828266,1763021448667,-500.0,0.00044109,120]
[393828267,1763021448677,-500.0,0.00044109,120]
[393828268,1763021448686,-500.0,0.00044109,120]
[393828269,1763021448696,-500.0,0.00044109,120]
[393828270,1763021448705,-500.0,0.00044109,120]
[393828271,1763021448715,-500.0,0.00044109,120]
[393828272,1763021448725,-500.0,0.00044109,120]
[393828273,1763021448734,-500.0,0.00044109,120]
[393828274,1763021448744,-500.0,0.00044109,120]
[393828275,1763021448753,-500.0,0.00044109,100]
[393828276,1763021448763,-500.0,0.00044109,120]
[393828277,1763021448772,-683.58,0.00044109,120]
[393828278,1763021448781,-500.0,0.00044109,120]
[393828279,1763021448790,-500.0,0.00044109,120]
[393828280,1763021448800,-500.0,0.00044109,120]
[393828281,1763021448809,-500.0,0.00044109,120]
[393828282,1763021448825,-500.0,0.00044109,120]
[393828283,1763021448838,-2522.89,0.00044109,120]
[393828284,1763021448848,-500.0,0.00044109,120]
[393828285,1763021448858,-500.0,0.00044109,120]
[393828286,1763021448868,-500.0,0.00044109,120]
[393828287,1763021448879,-1213.3,0.00044109,120]
[393828288,1763021448889,-500.0,0.00044109,120]
[393828289,1763021448899,-500.0,0.00044109,120]
[393828290,1763021448910,-500.0,0.00044109,120]
[393828291,1763021448920,-165.65305961,0.00044109,120]
[393828292,1763021449388,-334.34694039,0.00044109,120]
[393828293,1763021449399,-500.0,0.00044109,120]
[393828294,1763021449410,-500.0,0.00044109,120]
[393828295,1763021449419,-500.0,0.00044109,120]
[393828296,1763021449429,-1571.61,0.00044109,120]
[393828297,1763021449439,-500.0,0.00044109,120]
[393828298,1763021449449,-500.0,0.00044109,120]
[393828299,1763021449459,-500.0,0.00044109,120]
[393828300,1763021449469,-500.0,0.00044109,120]
[393828301,1763021449478,-500.0,0.00044109,120]
[393828302,1763021449488,-1539.84,0.00044109,120]
[393828303,1763021449498,-323.32137039,0.00044109,120]
[393828304,1763021449514,-429.71575122,0.00043835,120]
[393828305,1763021449680,152.57,0.00019,2]
[393828306,1763021449945,5000.0,0.00019,2]
[393828307,1763021450435,-155.45844809,0.00034061,7]
[393828308,1763021450446,-500.0,0.00034061,7]
[393828309,1763021450457,-153.31155191,0.00034061,7]
[393828310,1763021451192,5000.0,0.00019,2]
[393828311,1763021451294,-94.77230203,0.00034061,7]
[393828312,1763021452056,150.0,0.00019,2]
[393828315,1763021885268,-5000.0,0.00019228,2]
[393828316,1763021897246,-5000.0,0.00019422,2]
[393828317,1763021902719,-5000.0,0.00019228,2]
[393828318,1763021920884,-5000.0,0.00019519,2]
[393828319,1763021929066,-5000.0,0.00019519,2]
[393828320,1763021938030,5000.0,0.00019519,2]
[393828321,1763021945947,5000.0,0.00019519,2]
[393828322,1763021961142,5000.0,0.00019519,2]
[393828323,1763021969698,5000.0,0.00019519,2]
[393828324,1763021984969,5000.0,0.00019519,2]
[393828325,1763021992997,5000.0,0.00019519,2]
[393828327,1763022008182,5000.0,0.00019519,2]
[393828328,1763022016045,5000.0,0.00019519,2]
[393828353,1763022123206,-5000.0,0.00019778,2]
[393828354,1763022123229,-5000.0,0.00019978,2]
[393828356,1763022124851,5000.0,0.0002,2]
[393828357,1763022140854,5000.0,0.0002,2]
[393828358,1763022148762,5000.0,0.0002,2]
[393828359,1763022163987,5000.0,0.0002,2]
[393828360,1763022171743,5000.0,0.0002,2]
[393828361,1763022187425,5000.0,0.0002,2]
[393828362,1763022195781,5000.0,0.0002,2]
[393828363,1763022210928,5000.0,0.0002,2]
[393828364,1763022219151,5000.0,0.0002,2]
[393828365,1763022234955,5000.0,0.0002,2]
[393828366,1763022242785,5000.0,0.0002,2]
[393828367,1763022258056,5000.0,0.0002,2]
[393828368,1763022265892,5000.0,0.0002,2]
[393828370,1763022281074,5000.0,0.0002,2]
[393828371,1763022281628,159.345449,0.00013699,2]
[393828372,1763022288923,5000.0,0.0002,2]
[393828373,1763022290832,151.96576591,0.0002,2]
[393828374,1763022304462,5000.0,0.0002,2]
[393828375,1763022312570,5000.0,0.0002,2]
[393828377,1763022327968,5000.0,0.0002,2]
[393828378,1763022335817,5000.0,0.0002,2]
[393828379,1763022359396,5000.0,0.0002,2]
[393828384,1763022375276,-5000.0,0.00020207,2]
[393828385,1763022375299,-150.0,0.00020411,2]
[393828386,1763022381482,5000.0,0.000205,2]
[393828387,1763022395493,181.283871,0.00030137,120]
[393828388,1763022396698,5000.0,0.000205,2]
[393828389,1763022404532,5000.0,0.000205,2]
[393828391,1763022419790,5000.0,0.000205,2]
[393828393,1763022428837,5000.0,0.000205,2]
[393828402,1763022444103,5000.0,0.000205,2]
[393828403,1763022451935,5000.0,0.000205,2]
[393828408,1763022467229,5000.0,0.000205,2]
[393828411,1763022475013,5000.0,0.000205,2]
[393828418,1763022488369,2308.44151932,0.000125,2]
[393828421,1763022490585,5000.0,0.000205,2]
[393828428,1763022501008,287.62201085,0.0001,2]
[393828430,1763022506129,7552.29111002,0.00017,2]
[393828432,1763022509414,-1011.14231766,0.00020643,2]
[393828433,1763022509438,-5000.0,0.0002119,2]
[393828435,1763022509460,-159.345449,0.00021404,2]
[393828436,1763022510606,1000.0,0.0001,2]
[393828442,1763022525166,-5000.0,0.00021965,2]
[393828443,1763022525190,-5000.0,0.00022187,2]
[393828444,1763022525214,-177.0,0.00022411,2]
[393828450,1763022537955,-5000.0,0.000225,2]
[393828451,1763022537983,-1011.14231766,0.0002265,2]
[393828452,1763022538010,-16253.8528334,0.00024142,2]
[393828453,1763022538038,-270.89916306,0.00024411,2]
[393828454,1763022538068,-1011.14231766,0.00024658,2]
[393828455,1763022538101,-1751.81378416,0.000248,4]
[393828458,1763022545659,5000.0,0.00025,2]
[393828464,1763022561430,5000.0,0.00025,2]
[393828468,1763022569295,5000.0,0.00025,2]
[393828470,1763022573092,-483.3860644,0.00025258,2]
[393828471,1763022573113,-350.0,0.00026316,2]
[393828472,1763022573134,-350.0,0.00026516,19]
[393828473,1763022573155,-1011.14231766,0.00026666,2]
[393828474,1763022573177,-1200.0,0.00026848,2]
[393828475,1763022573200,-300.0,0.00028063,2]
[393828476,1763022573223,-300.0,0.00028063,2]
[393828477,1763022573246,-203.03773394,0.00028424,30]
[393828478,1763022573267,-300.0,0.00028673,2]
[393828479,1763022573289,-1011.14231766,0.00028674,2]
[393828480,1763022573311,-159.345449,0.0002911,2]
[393828481,1763022573332,-483.3860644,0.00029175,2]
[393828482,1763022573355,-171.5421796,0.0002937,34]
[393828483,1763022573377,-999.0,0.00029631,2]
[393828484,1763022573402,-184.59912949,0.00029989,2]
[393828490,1763022585112,5000.0,0.00025,2]
[393828494,1763022593055,5000.0,0.00025,2]
[393828501,1763022608328,5000.0,0.00025,2]
[393828506,1763022616281,5000.0,0.00025,2]
[393828570,1763022631828,-341.66820933,0.00029899,2]
[393828572,1763022631838,-1423.1,0.0002999,10]
[393828574,1763022631847,-1185.92,0.0002999,10]
[393828575,1763022631857,-300.0,0.00029998,2]
[393828576,1763022631866,-500.0,0.00029999,2]
[393828577,1763022631876,-500.0,0.00029999,2]
[393828578,1763022631885,-500.0,0.00029999,2]
[393828579,1763022631894,-500.0,0.00029999,2]
[393828580,1763022631903,-500.0,0.00029999,2]
[393828581,1763022631912,-500.0,0.00029999,2]
[393828582,1763022631921,-604.59379508,0.00029999,2]
[393828583,1763022631930,-500.0,0.00029999,2]
[393828584,1763022631940,-500.0,0.00029999,2]
[393828585,1763022631950,-500.0,0.00029999,2]
[393828586,1763022631960,-500.0,0.00029999,2]
[393828590,1763022632134,-500.0,0.00029999,2]
[393828591,1763022632146,-500.0,0.00029999,2]
[393828592,1763022632156,-500.0,0.00029999,2]
[393828593,1763022632164,-344.40779832,0.00029999,2]
[393828594,1763022632174,-500.0,0.00029999,2]
[393828595,1763022632183,-500.0,0.00029999,2]
[393828596,1763022632192,-500.0,0.00029999,2]
[393828597,1763022632202,-500.0,0.00029999,2]
[393828598,1763022632211,-500.0,0.00029999,2]
[393828599,1763022632221,-500.0,0.00029999,2]
[393828600,1763022632232,-500.0,0.00029999,2]
[393828601,1763022632241,-500.0,0.00029999,2]
[393828602,1763022632250,-500.0,0.00029999,2]
[393828603,1763022632259,-500.0,0.00029999,2]
[393828604,1763022632268,-500.0,0.00029999,2]
[393828605,1763022632279,-500.0,0.00029999,2]
[393828606,1763022632289,-500.0,0.00029999,2]
[393828607,1763022632298,-500.0,0.00029999,2]
[393828608,1763022632309,-500.0,0.00029999,2]
[393828609,1763022632318,-500.0,0.00029999,2]
[393828610,1763022632328,-500.0,0.00029999,2]
[393828611,1763022632337,-340.17267718,0.00029999,2]
[393828612,1763022632347,-500.0,0.00029999,2]
[393828613,1763022632356,-500.0,0.00029999,2]
[393828614,1763022632366,-500.0,0.00029999,2]
[393828615,1763022632375,-500.0,0.00029999,2]
[393828616,1763022632385,-500.0,0.00029999,2]
[393828617,1763022632394,-500.0,0.00029999,2]
[393828618,1763022632404,-500.0,0.00029999,2]
[393828619,1763022632413,-500.0,0.00029999,2]
[393828620,1763022632424,-500.0,0.00029999,2]
[393828621,1763022632434,-500.0,0.00029999,2]
[393828622,1763022632444,-500.0,0.00029999,2]
[393828623,1763022632454,-500.0,0.00029999,2]
[393828624,1763022632465,-500.0,0.00029999,2]
[393828625,1763022632474,-513.05916225,0.00029999,2]
[393828626,1763022632484,-311.01011037,0.00029999,2]
[393828627,1763022632494,-500.0,0.00029999,2]
[393828628,1763022632504,-500.0,0.00029999,2]
[393828629,1763022632514,-500.0,0.00029999,2]
[393828630,1763022632523,-550.0,0.00029999,2]
[393828631,1763022632532,-525.68023362,0.00029999,2]
[393828632,1763022632541,-500.0,0.00029999,2]
[393828633,1763022632551,-294.6224552,0.00029999,2]
[393828634,1763022632560,-500.0,0.00029999,2]
[393828635,1763022632570,-500.0,0.00029999,2]
[393828636,1763022632579,-500.0,0.00029999,2]
[393828637,1763022632590,-500.0,0.00029999,2]
[393828638,1763022632602,-500.0,0.00029999,2]
[393828639,1763022632612,-500.0,0.00029999,2]
[393828640,1763022632622,-584.53324168,0.00029999,2]
[393828641,1763022632631,-500.0,0.00029999,2]
[393828642,1763022632642,-500.0,0.00029999,2]
[393828643,1763022632652,-500.0,0.00029999,2]
[393828644,1763022632661,-500.0,0.00029999,2]
[393828645,1763022632670,-500.0,0.00029999,2]
[393828646,1763022632683,-500.0,0.00029999,2]
[393828647,1763022632694,-500.0,0.00029999,2]
[393828648,1763022632704,-500.0,0.00029999,2]
[393828649,1763022632714,-500.0,0.00029999,2]
[393828650,1763022632724,-452.76914766,0.00029999,2]
[393828651,1763022632734,-500.0,0.00029999,2]
[393828652,1763022632743,-500.0,0.00029999,2]
[393828653,1763022632752,-500.0,0.00029999,2]
[393828654,1763022632762,-500.0,0.00029999,2]
[393828655,1763022632771,-500.0,0.00029999,2]
[393828656,1763022632781,-500.0,0.00029999,2]
[393828657,1763022632791,-500.0,0.00029999,2]
[393828658,1763022632799,-500.0,0.00029999,2]
[393828659,1763022632809,-500.0,0.00029999,2]
[393828660,1763022632819,-500.0,0.00029999,2]
[393828661,1763022632829,-500.0,0.00029999,2]
[393828662,1763022632839,-500.0,0.00029999,2]
[393828663,1763022632848,-168.67792834,0.00029999,2]
[393828664,1763022632856,-500.0,0.00029999,2]
[393828665,1763022632866,-500.0,0.00029999,2]
[393828666,1763022632875,-500.0,0.00029999,2]
[393828667,1763022632885,-500.0,0.00029999,2]
[393828668,1763022632895,-18743.80499995,0.0003,30]
[393828669,1763022632959,5000.0,0.00025,2]
[393828673,1763022637764,-513.7629982,0.0003,30]
[393828674,1763022637775,-762.98972031,0.0003,30]
[393828675,1763022637785,-700.31182566,0.0003,30]
[393828680,1763022640213,5000.0,0.00025,2]
[393828688,1763022642952,-988.27,0.0002999,10]
[393828689,1763022642962,-2514.73092129,0.0003,30]
[393828692,1763022643552,-4.44853756,0.0003,30]
[393828697,1763022646034,-3146.90823886,0.0003,30]
[393828705,1763022655485,5000.0,0.00025,2]
[393828709,1763022664510,5000.0,0.00025,2]
[393828714,1763022679706,5000.0,0.00025,2]
[393828718,1763022687486,5000.0,0.00025,2]
[393828735,1763022701845,660.08944997,0.00020643,2]
[393828737,1763022702680,5000.0,0.00025,2]
[393828741,1763022710499,5000.0,0.00025,2]
[393828757,1763022725740,5000.0,0.00025,2]
[393828761,1763022731829,151.53283525,0.00020643,2]
[393828764,1763022733480,5000.0,0.00025,2]
[393828771,1763022748690,5000.0,0.00025,2]
[393828777,1763022757003,5000.0,0.00025,2]
[393828779,1763022772699,5000.0,0.00025,2]
[393828782,1763022780502,5000.0,0.00025,2]
[393828794,1763022795701,5000.0,0.00025,2]
[393828801,1763022803506,5000.0,0.00025,2]
[393828811,1763022818912,5000.0,0.00025,2]
[393828816,1763022826977,5000.0,0.00025,2]
[393828828,1763022843258,5000.0,0.00025,2]
[393828834,1763022851826,2842.28379701,0.00025,2]
[393828842,1763022867015,5000.0,0.00025,2]
[393828856,1763022889363,5000.0,0.00025,2]
[393828864,1763022912217,5000.0,0.00025,2]
[393828866,1763022935080,5000.0,0.00025,2]
[393828873,1763022957422,5000.0,0.00025,2]
[393828904,1763022980286,5000.0,0.00025,2]
[393828931,1763023002648,5000.0,0.00025,2]
[393828932,1763023004449,150.5,0.0002999,120]
[393828933,1763023004885,150.5,0.0002998,120]
[393828935,1763023025333,5000.0,0.00025,2]
[393828936,1763023048161,5000.0,0.00025,2]
[393828939,1763023070936,5000.0,0.00025,2]
[393828940,1763023093717,5000.0,0.00025,2]
[393828941,1763023100080,1120.1083817,0.00020643,2]
[393828942,1763023100650,1120.1083817,0.00023654,2]
[393828943,1763023116511,5000.0,0.00025,2]
[393828944,1763023139310,5000.0,0.00025,2]
[393828947,1763023161808,99858.07545076,0.000328,120]
[393828948,1763023161968,5000.0,0.00025,2]
[393828949,1763023184868,5000.0,0.00025,2]
[393828954,1763023208178,5000.0,0.00025,2]
[393828956,1763023230595,5000.0,0.00025,2]
[393828957,1763023252838,5000.0,0.00025,2]
[393828958,1763023264379,177.92,0.00025,2]
[393828959,1763023275132,5000.0,0.00025,2]
[393828962,1763023293028,206.3448915,0.0002496,2]
[393828964,1763023297914,5000.0,0.00025,2]
[393828968,1763023320341,5000.0,0.00025,2]
[393828970,1763023343128,5000.0,0.00025,2]
[393828971,1763023365951,5000.0,0.00025,2]
[393828972,1763023389137,5000.0,0.00025,2]
[393828973,1763023395773,800.44311293,0.00020643,2]
[393828974,1763023396564,800.44311293,0.00023654,2]
[393828976,1763023411993,5000.0,0.00025,2]
[393828978,1763023434633,5000.0,0.00025,2]
[393828981,1763023458042,5000.0,0.00025,2]
[393828982,1763023481477,5000.0,0.00025,2]
[393828983,1763023504191,5000.0,0.00025,2]
[393828986,1763023528031,5000.0,0.00025,2]
[393829051,1763023550316,5000.0,0.00025,2]
[393829052,1763023573191,5000.0,0.00025,2]
[393829056,1763023596042,5000.0,0.00025,2]
[393829062,1763023618251,5000.0,0.00025,2]
[393829319,1763023840065,-2579.11626365,0.00020437,2]
[393829326,1763023840121,-433.33155169,0.00020437,2]
[393829328,1763023840133,-1987.55218466,0.00020437,2]
[393829330,1763023840142,-800.76322615,0.00020643,2]
[393829332,1763023840152,-169.44009325,0.00024709,2]
[393829334,1763023840160,-231.57441608,0.0002504,4]
[393829336,1763023840170,-150.0,0.0002507,2]
[393829338,1763023840179,-342.53167752,0.000251,2]
[393829340,1763023840188,-903.0,0.00025159,2]
[393829342,1763023840197,-800.76322615,0.0002516,2]
[393829345,1763023840218,-300.0,0.00026574,2]
[393829347,1763023840229,-267.0,0.00026665,2]
[393829349,1763023840238,-2172.3728334,0.00027222,2]
[393829351,1763023840248,-187.40342321,0.00027818,4]
[393829353,1763023840257,-420.0,0.00028742,2]
[393829355,1763023840267,-282.11974231,0.00029349,4]
[393829358,1763023840277,-155.972334,0.00029423,20]
[393829360,1763023840292,-2223.69224154,0.00029673,2]
[393829362,1763023840306,-800.76322615,0.00029678,2]
[393829364,1763023840315,-874.19045939,0.00029898,2]
[393829366,1763023840324,-500.0,0.00029973,5]
[393829368,1763023840334,-500.0,0.00029973,5]
[393829370,1763023840343,-503.01732851,0.00029973,5]
[393829372,1763023840353,-505.04942401,0.00029973,5]
[393829374,1763023840362,-500.0,0.00029973,2]
[393829376,1763023840372,-500.0,0.00029973,5]
[393829378,1763023840381,-504.45011313,0.00029973,3]
[393829380,1763023840391,-505.79914079,0.00029973,5]
[393829382,1763023840401,-573.34682906,0.00029973,5]
[393829384,1763023840410,-500.0,0.00029973,5]
[393829386,1763023840420,-500.0,0.00029973,5]
[393829388,1763023840430,-520.86953683,0.00029973,5]
[393829390,1763023840439,-500.0,0.00029979,60]
[393829392,1763023840448,-823.55,0.00029979,10]
[393829394,1763023840460,-686.3,0.00029979,10]
[393829396,1763023840470,-571.91,0.00029979,10]
[393829398,1763023840480,-1913.13,0.0002998,3]
[393829400,1763023840489,-956.57,0.0002998,3]
[393829402,1763023840499,-478.28,0.0002998,3]
[393829404,1763023840509,-239.14,0.0002998,3]